fUST/lending_fUST_20250602
["ID","MTS","AMOUNT","RATE_DAILY","PERIOD"]
[363743171,1748857845762,-569.47,0.00018904,2]
[363743173,1748857845771,-430.0,0.00018904,2]
[363743175,1748857845782,-430.0,0.00018904,2]
[363743177,1748857845791,-458.54,0.00018904,2]
[363743179,1748857845801,-430.0,0.00018904,2]
[363743181,1748857845811,-590.55,0.00018904,2]
[363743183,1748857845821,-442.95,0.00018904,2]
[363743185,1748857845831,-700.56,0.00018904,2]
[363743187,1748857845843,-430.0,0.00018904,2]
[363743189,1748857845853,-664.46,0.00018904,2]
[363743191,1748857845863,-6205.65,0.00018904,2]
[363743193,1748857845873,-2246.54,0.00018904,2]
[363743195,1748857845882,-430.0,0.00018904,2]
[363743197,1748857845892,-430.0,0.00018904,2]
[363743199,1748857845902,-637.87,0.00018904,2]
[363743201,1748857845911,-758.45,0.00018904,2]
[363743203,1748857845921,-430.0,0.00018904,2]
[363743205,1748857845931,-1781.87,0.00018904,2]
[363743207,1748857845941,-1413.41,0.00018904,2]
[363743209,1748857845950,-430.0,0.00018904,2]
[363743211,1748857845961,-430.0,0.00018904,2]
[363743214,1748857845971,-2427.98,0.00018904,2]
[363743216,1748857845982,-1145.47,0.00018904,2]
[363743218,1748857845992,-1598.08,0.00018904,2]
[363743220,1748857846002,-541.35,0.00018904,2]
[363743222,1748857846012,-552.9,0.00018904,2]
[363743224,1748857846022,-1271.65,0.00018904,2]
[363743226,1748857846032,-635.08,0.00018904,2]
[363743228,1748857846041,-2100.71505914,0.00018934,2]
[363743230,1748857846051,-39863.3879595,0.00019,4]
[363743232,1748857846060,-151.0,0.00019,2]
[363743234,1748857846070,-151.0,0.00019,2]
[363743236,1748857846079,-152.111398,0.00019,2]
[363743238,1748857846089,-151.0,0.00019,2]
[363743240,1748857846099,-152.062489,0.00019,2]
[363743242,1748857846110,-151.0,0.00019,2]
[363743245,1748857846121,-151.0,0.00019,2]
[363743247,1748857846131,-151.0,0.00019,2]
[363743249,1748857846142,-151.0,0.00019,2]
[363743251,1748857846155,-280.838181,0.00019,2]
[363743253,1748857846165,-151.0,0.00019,2]
[363743255,1748857846174,-321.011762,0.00019,2]
[363743257,1748857846184,-321.011762,0.00019,2]
[363743259,1748857846194,-151.0,0.00019,2]
[363743261,1748857846203,-151.0,0.00019,2]
[363743262,1748857846213,-615.824992,0.00019,2]
[363743264,1748857846223,-151.0,0.00019,2]
[363743266,1748857846234,-615.824992,0.00019,2]
[363743269,1748857846245,-200.051556,0.00019,2]
[363743271,1748857846255,-151.0,0.00019,2]
[363743273,1748857846265,-151.0,0.00019,2]
[363743274,1748857846274,-717.04479367,0.0001901,2]
[363743277,1748857846283,-1700.0,0.00019033,2]
[363743279,1748857846294,-587.0,0.00019124,2]
[363743281,1748857846303,-587.0,0.00019124,2]
[363743283,1748857846314,-1275.77,0.00019166,2]
[363743285,1748857846324,-1753.73898409,0.00019178,3]
[363743287,1748857846334,-3675.08188021,0.00019178,2]
[363743289,1748857846343,-500.0,0.00019178,2]
[363743291,1748857846353,-500.0,0.00019178,2]
[363743293,1748857846364,-500.0,0.00019178,2]
[363743295,1748857846381,-500.0,0.00019178,2]
[363743297,1748857846391,-500.0,0.00019178,2]
[363743299,1748857846401,-500.0,0.00019178,2]
[363743301,1748857846410,-500.0,0.00019178,2]
[363743303,1748857846420,-500.0,0.00019178,2]
[363743305,1748857846430,-500.0,0.00019178,2]
[363743307,1748857846440,-500.0,0.00019178,2]
[363743309,1748857846450,-500.0,0.00019178,2]
[363743311,1748857846463,-500.0,0.00019178,2]
[363743313,1748857846476,-500.0,0.00019178,2]
[363743315,1748857846487,-500.0,0.00019178,2]
[363743317,1748857846497,-500.0,0.00019178,2]
[363743319,1748857846508,-500.0,0.00019178,2]
[363743321,1748857846518,-500.0,0.00019178,2]
[363743323,1748857846528,-500.0,0.00019178,2]
[363743325,1748857846538,-500.0,0.00019178,2]
[363743327,1748857846548,-466.87529286,0.00019178,2]
[363743329,1748857846558,-500.0,0.00019178,2]
[363743331,1748857846568,-500.0,0.00019178,2]
[363743333,1748857846578,-500.0,0.00019178,2]
[363743336,1748857846588,-500.0,0.00019178,2]
[363743339,1748857846599,-500.0,0.00019178,2]
[363743341,1748857846609,-500.0,0.00019178,2]
[363743344,1748857846619,-500.0,0.00019178,2]
[363743347,1748857846629,-500.0,0.00019178,2]
[363743349,1748857846638,-500.0,0.00019178,2]
[363743351,1748857846648,-500.0,0.00019178,2]
[363743353,1748857846657,-500.0,0.00019178,2]
[363743355,1748857846667,-500.0,0.00019178,2]
[363743357,1748857846677,-500.0,0.00019178,2]
[363743359,1748857846687,-500.0,0.00019178,2]
[363743361,1748857846697,-500.0,0.00019178,2]
[363743363,1748857846708,-500.0,0.00019178,2]
[363743365,1748857846718,-500.0,0.00019178,2]
[363743367,1748857846729,-500.0,0.00019178,2]
[363743369,1748857846739,-500.0,0.00019178,2]
[363743371,1748857846749,-500.0,0.00019178,2]
[363743373,1748857846760,-500.0,0.00019178,2]
[363743375,1748857846770,-500.0,0.00019178,2]
[363743378,1748857846780,-500.0,0.00019178,2]
[363743379,1748857846790,-500.0,0.00019178,2]
[363743382,1748857846800,-500.0,0.00019178,2]
[363743384,1748857846810,-500.0,0.00019178,2]
[363743386,1748857846820,-500.0,0.00019178,2]
[363743388,1748857846830,-450.0,0.00019178,2]
[363743390,1748857846840,-500.0,0.00019178,2]
[363743392,1748857846850,-500.0,0.00019178,2]
[363743394,1748857846860,-500.0,0.00019178,2]
[363743396,1748857846869,-500.0,0.00019178,2]
[363743398,1748857846880,-154.910433,0.00019178,2]
[363743400,1748857846889,-151.0,0.00019178,2]
[363743402,1748857846900,-155.560896,0.00019178,2]
[363743404,1748857846910,-151.0,0.00019178,2]
[363743406,1748857846920,-151.0,0.00019178,2]
[363743408,1748857846930,-152.512802,0.00019178,2]
[363743410,1748857846940,-151.0,0.00019178,2]
[363743412,1748857846951,-151.0,0.00019178,2]
[363743414,1748857846962,-154.880289,0.00019178,2]
[363743416,1748857846972,-151.0,0.00019178,2]
[363743418,1748857846983,-430.0,0.00019178,2]
[363743420,1748857846992,-430.0,0.00019178,2]
[363743422,1748857847002,-151.0,0.00019178,2]
[363743424,1748857847012,-151.0,0.00019178,2]
[363743426,1748857847022,-500.0,0.00019178,2]
[363743428,1748857847031,-500.0,0.00019178,2]
[363743430,1748857847041,-500.0,0.00019178,2]
[363743432,1748857847051,-500.0,0.00019178,2]
[363743434,1748857847061,-500.0,0.00019178,2]
[363743436,1748857847071,-500.0,0.00019178,2]
[363743439,1748857847082,-500.0,0.00019178,2]
[363743441,1748857847091,-500.0,0.00019178,2]
[363743443,1748857847102,-500.0,0.00019178,2]
[363743445,1748857847111,-500.0,0.00019178,2]
[363743447,1748857847122,-430.0,0.00019178,2]
[363743449,1748857847131,-738.9,0.00019178,2]
[363743451,1748857847142,-500.0,0.00019178,2]
[363743453,1748857847156,-500.0,0.00019178,2]
[363743455,1748857847166,-318.70111273,0.00019178,2]
[363743457,1748857847175,-569.47,0.00019178,2]
[363743459,1748857847187,-430.0,0.00019178,2]
[363743461,1748857847196,-430.0,0.00019178,2]
[363743463,1748857847206,-458.54,0.00019178,2]
[363743465,1748857847216,-430.0,0.00019178,2]
[363743467,1748857847227,-590.55,0.00019178,2]
[363743469,1748857847237,-442.95,0.00019178,2]
[363743471,1748857847247,-700.56,0.00019178,2]
[363743473,1748857847257,-430.0,0.00019178,2]
[363743475,1748857847267,-664.46,0.00019178,2]
[363743476,1748857847277,-6205.65,0.00019178,2]
[363743477,1748857847287,-2246.54,0.00019178,2]
[363743478,1748857847297,-430.0,0.00019178,2]
[363743479,1748857847307,-430.0,0.00019178,2]
[363743481,1748857847318,-637.87,0.00019178,2]
[363743482,1748857847327,-758.45,0.00019178,2]
[363743485,1748857847337,-430.0,0.00019178,2]
[363743487,1748857847347,-430.0,0.00019178,2]
[363743489,1748857847357,-430.0,0.00019178,2]
[363743491,1748857847367,-430.0,0.00019178,2]
[363743493,1748857847377,-1781.87,0.00019178,2]
[363743495,1748857847387,-1413.41,0.00019178,2]
[363743497,1748857847397,-430.0,0.00019178,2]
[363743499,1748857847407,-430.0,0.00019178,2]
[363743501,1748857847418,-2427.98,0.00019178,2]
[363743503,1748857847428,-1145.47,0.00019178,2]
[363743505,1748857847438,-1598.08,0.00019178,2]
[363743507,1748857847449,-541.35,0.00019178,2]
[363743509,1748857847459,-552.9,0.00019178,2]
[363743511,1748857847469,-1271.65,0.00019178,2]
[363743513,1748857847479,-635.08,0.00019178,2]
[363743526,1748857847489,-151.0,0.00019178,2]
[363743528,1748857847598,-256.846751,0.00019178,2]
[363743530,1748857847608,-151.0,0.000192,2]
[363743532,1748857847618,-151.0,0.000192,2]
[363743534,1748857847628,-2100.71505914,0.0001921,2]
[363743536,1748857847638,-157.1408538,0.00019233,2]
[363743538,1748857847648,-186.96503797,0.00019317,2]
[363743540,1748857847658,-41218.01644711,0.00019329,2]
[363743542,1748857847668,-160.22927135,0.00019373,2]
[363743544,1748857847679,-500.0,0.00019373,2]
[363743546,1748857847688,-450.50530877,0.00019373,2]
[363743548,1748857847698,-500.0,0.00019373,2]
[363743550,1748857847708,-500.68447698,0.00019373,2]
[363743552,1748857847719,-159.25883467,0.00019373,2]
[363743554,1748857847729,-500.34728116,0.00019373,2]
[363743557,1748857847739,-500.0,0.00019407,2]
[363743558,1748857847749,-500.0,0.00019407,2]
[363743561,1748857847760,-500.0,0.00019407,2]
[363743563,1748857847770,-500.0,0.00019407,2]
[363743565,1748857847780,-600.0,0.00019407,2]
[363743566,1748857847790,-500.0,0.00019407,2]
[363743568,1748857847800,-632.26476029,0.00019407,2]
[363743570,1748857847809,-360.08328903,0.00019407,2]
[363743572,1748857847819,-500.0,0.00019407,2]
[363743574,1748857847829,-160.0,0.00019424,2]
[363743576,1748857847839,-160.0,0.00019424,2]
[363743578,1748857847849,-160.0,0.00019424,2]
[363743581,1748857847866,-212.83419937,0.00019424,2]
[363743583,1748857847876,-12668.79298183,0.00019425,2]
[363743585,1748857847885,-842.5625,0.00019425,2]
[363743587,1748857847895,-423.56953423,0.00019425,2]
[363743589,1748857847904,-160.0,0.00019425,2]
[363743591,1748857847914,-160.0,0.00019425,2]
[363743593,1748857847923,-160.0,0.00019425,2]
[363743595,1748857847933,-229.39799938,0.00019425,2]
[363743597,1748857847943,-548.39645406,0.00019448,2]
[363743599,1748857847953,-430.0,0.00019452,2]
[363743601,1748857847963,-430.0,0.00019452,2]
[363743603,1748857847974,-430.0,0.00019452,2]
[363743605,1748857847983,-738.9,0.00019452,2]
[363743607,1748857847992,-569.47,0.00019452,2]
[363743609,1748857848002,-430.0,0.00019452,2]
[363743611,1748857848012,-430.0,0.00019452,2]
[363743613,1748857848021,-264.11219794,0.00019452,2]
[363743769,1748857849555,-11.53589207,0.00019452,2]
[363743803,1748857849838,-300.0,0.00016437,2]
[363743805,1748857849847,-182.89190999,0.00019452,2]
[363743807,1748857849855,-430.0,0.00019452,2]
[363743809,1748857849864,-590.55,0.00019452,2]
[363743811,1748857849874,-442.95,0.00019452,2]
[363743813,1748857849883,-700.56,0.00019452,2]
[363743816,1748857849892,-430.0,0.00019452,2]
[363743828,1748857849998,-664.46,0.00019452,2]
[363743831,1748857850010,-6205.65,0.00019452,2]
[363743833,1748857850020,-2246.54,0.00019452,2]
[363743834,1748857850030,-430.0,0.00019452,2]
[363743836,1748857850040,-430.0,0.00019452,2]
[363743838,1748857850050,-637.87,0.00019452,2]
[363743840,1748857850059,-758.45,0.00019452,2]
[363743842,1748857850069,-430.0,0.00019452,2]
[363743844,1748857850079,-1377.2605232,0.00019452,2]
[363743847,1748857850091,-404.6094768,0.00019452,2]
[363743849,1748857850100,-1413.41,0.00019452,2]
[363743851,1748857850110,-430.0,0.00019452,2]
[363743853,1748857850119,-430.0,0.00019452,2]
[363743855,1748857850129,-2427.98,0.00019452,2]
[363743857,1748857850139,-1145.47,0.00019452,2]
[363743859,1748857850152,-1149.21445303,0.00019452,2]
[363743861,1748857850164,-448.86554697,0.00019452,2]
[363743863,1748857850174,-381.56445303,0.00019452,2]
[363744407,1748858014725,303.55392084,0.00015578,2]
[363744409,1748858086663,158.386177,0.00013699,2]
[363744416,1748858336916,371.7504096,0.0001552,2]
[363744417,1748858420923,-185.4414539,0.00015626,2]
[363744418,1748858420946,-344.13448018,0.00015945,2]
[363744419,1748858420969,-172.06724009,0.00016211,2]
[363744420,1748858420991,-373.35,0.00016316,2]
[363744421,1748858421015,-300.0,0.00016437,2]
[363744422,1748858421040,-300.0,0.00016437,2]
[363744423,1748858421063,-466.94882914,0.00016438,2]
[363744424,1748858421084,-430.0,0.00016438,2]
[363744425,1748858421107,-430.0,0.00016438,2]
[363744426,1748858421129,-430.86821487,0.00016438,2]
[363744427,1748858421151,-430.0,0.00016438,2]
[363744428,1748858421174,-430.0,0.00016438,2]
[363744429,1748858421197,-430.0,0.00016438,2]
[363744430,1748858421221,-430.0,0.00016438,2]
[363744431,1748858421247,-1270.63,0.00016438,2]
[363744432,1748858421271,-430.0,0.00016438,2]
[363744433,1748858421433,-430.0,0.00016438,2]
[363744434,1748858421458,-430.0,0.00016438,2]
[363744435,1748858421488,-430.0,0.00016438,2]
[363744436,1748858421511,-430.0,0.00016438,2]
[363744437,1748858421535,-411.85079157,0.00016438,2]
[363744438,1748858421559,-430.0,0.00016438,2]
[363744439,1748858421584,-423.12972372,0.00016438,2]
[363744440,1748858421609,-430.0,0.00016438,2]
[363744441,1748858421631,-430.0,0.00016438,2]
[363744442,1748858421657,-430.0,0.00016438,2]
[363744443,1748858421680,-430.0,0.00016438,2]
[363744444,1748858421704,-3361.4,0.00016438,2]
[363744445,1748858421730,-430.0,0.00016438,2]
[363744446,1748858421752,-161.99075145,0.00016612,2]
[363744447,1748858421777,-430.0,0.00016711,2]
[363744448,1748858421800,-430.0,0.00016711,2]
[363744449,1748858421826,-783.51,0.00016711,2]
[363744450,1748858421851,-983.09,0.00016711,2]
[363744451,1748858421875,-430.0,0.00016711,2]
[363744452,1748858421900,-620.46,0.00016711,2]
[363744453,1748858421926,-759.71,0.00016711,2]
[363744454,1748858421953,-51.41851508,0.00016711,2]
[363744455,1748858504495,1050.64798194,0.0002465,120]
[363745341,1748859038552,-389.75,0.00016184,2]
[363745342,1748859038562,-63.35983956,0.00016348,2]
[363745343,1748859038574,-191.64016044,0.00016348,2]
[363745344,1748859038583,-102.97899672,0.00016648,2]
[363745355,1748859043608,-147.02100328,0.00016648,2]
[363745356,1748859043618,-160.0,0.00016709,2]
[363745357,1748859043628,-300.0,0.00016709,2]
[363745358,1748859043637,-430.0,0.0001671,2]
[363745359,1748859043646,-430.0,0.0001671,2]
[363745360,1748859043654,-430.0,0.0001671,2]
[363745361,1748859043664,-430.0,0.0001671,2]
[363745362,1748859043676,-430.0,0.0001671,2]
[363745363,1748859043685,-430.0,0.0001671,2]
[363745364,1748859043694,-430.0,0.0001671,2]
[363745365,1748859043704,-430.0,0.0001671,2]
[363745366,1748859043714,-3479.91,0.0001671,2]
[363745367,1748859043723,-1385.85,0.0001671,2]
[363745368,1748859043733,-430.0,0.0001671,2]
[363745369,1748859043742,-520.00032308,0.0001671,2]
[363745370,1748859043752,-578.4412484,0.0001671,2]
[363745371,1748859043761,-430.0,0.0001671,2]
[363745372,1748859043771,-468.01,0.0001671,2]
[363745373,1748859043781,-430.0,0.0001671,2]
[363745374,1748859043791,-430.0,0.0001671,2]
[363745375,1748859043801,-430.0,0.0001671,2]
[363745376,1748859043811,-430.0,0.0001671,2]
[363745377,1748859043820,-430.0,0.0001671,2]
[363745378,1748859043831,-430.0,0.0001671,2]
[363745379,1748859043841,-1016.38,0.0001671,2]
[363745380,1748859043850,-866.87,0.0001671,2]
[363745381,1748859043860,-430.0,0.0001671,2]
[363745382,1748859043870,-430.0,0.0001671,2]
[363745383,1748859043880,-700.68,0.0001671,2]
[363745384,1748859043893,-1432.09,0.0001671,2]
[363745385,1748859043904,-430.0,0.0001671,2]
[363745386,1748859043917,-796.28,0.0001671,2]
[363745387,1748859043931,-430.0,0.0001671,2]
[363745388,1748859043945,-171.29270175,0.00016711,2]
[363745389,1748859043955,-430.0,0.00016711,2]
[363745390,1748859043965,-430.0,0.00016711,2]
[363745391,1748859043975,-430.0,0.00016711,2]
[363745392,1748859043988,-430.0,0.00016711,2]
[363745393,1748859044002,-430.0,0.00016711,2]
[363745394,1748859044014,-430.0,0.00016711,2]
[363745395,1748859044025,-464.59,0.00016711,2]
[363745396,1748859044038,-344.06083632,0.00016712,2]
[363745397,1748859044050,-430.0,0.00016984,2]
[363745398,1748859044062,-430.0,0.00016984,2]
[363745399,1748859044073,-430.0,0.00016984,2]
[363745400,1748859044084,-430.0,0.00016984,2]
[363745401,1748859044095,-430.0,0.00016984,2]
[363745402,1748859044108,-430.0,0.00016984,2]
[363745403,1748859044121,-430.0,0.00016984,2]
[363745404,1748859044131,-430.0,0.00016984,2]
[363745405,1748859044146,-3479.91,0.00016984,2]
[363745406,1748859044159,-1385.85,0.00016984,2]
[363745407,1748859044171,-430.0,0.00016984,2]
[363745408,1748859044182,-430.0,0.00016984,2]
[363745409,1748859044193,-468.01,0.00016984,2]
[363745410,1748859044203,-430.0,0.00016984,2]
[363745411,1748859044215,-430.0,0.00016984,2]
[363745412,1748859044227,-430.0,0.00016984,2]
[363745413,1748859044237,-430.0,0.00016984,2]
[363745414,1748859044246,-430.0,0.00016984,2]
[363745415,1748859044258,-1016.38,0.00016984,2]
[363745416,1748859044271,-866.87,0.00016984,2]
[363745417,1748859044281,-430.0,0.00016984,2]
[363745418,1748859044291,-430.0,0.00016984,2]
[363745419,1748859044300,-700.68,0.00016984,2]
[363745420,1748859044310,-1432.09,0.00016984,2]
[363745421,1748859044319,-430.0,0.00016984,2]
[363745422,1748859044330,-796.28,0.00016984,2]
[363745423,1748859044339,-430.0,0.00016984,2]
[363745424,1748859044349,-430.0,0.00016985,2]
[363745425,1748859044358,-430.0,0.00016985,2]
[363745426,1748859044367,-430.0,0.00016985,2]
[363745427,1748859044377,-430.0,0.00016985,2]
[363745428,1748859044386,-430.0,0.00016985,2]
[363745429,1748859044395,-430.0,0.00016985,2]
[363745430,1748859044404,-464.59,0.00016985,2]
[363745431,1748859044413,-200.0,0.00017257,2]
[363745432,1748859044422,-430.0,0.00017258,2]
[363745433,1748859044431,-430.0,0.00017258,2]
[363745434,1748859044440,-430.0,0.00017258,2]
[363745435,1748859044449,-430.0,0.00017258,2]
[363745436,1748859044459,-430.0,0.00017258,2]
[363745437,1748859044469,-280.0689462,0.00017258,2]
[363745438,1748859044485,-149.9310538,0.00017258,2]
[363745439,1748859044495,-369.90044165,0.00017258,2]
[363745440,1748859044507,-60.09955835,0.00017258,2]
[363745441,1748859044516,-291.44385345,0.00017258,2]
[363745442,1748859044528,-138.55614655,0.00017258,2]
[363745443,1748859044537,-3479.91,0.00017258,2]
[363745444,1748859044546,-587.74521784,0.00017258,2]
[363745445,1748859046528,-300.0,0.00016709,2]
[363745446,1748859046538,-430.0,0.0001671,2]
[363745447,1748859046547,-524.33,0.00016711,2]
[363745448,1748859046556,-798.10478216,0.00017258,2]
[363745449,1748859046565,-430.0,0.00017258,2]
[363745450,1748859046574,-430.0,0.00017258,2]
[363745451,1748859046583,-468.01,0.00017258,2]
[363745452,1748859046592,-430.0,0.00017258,2]
[363745453,1748859046602,-430.0,0.00017258,2]
[363745454,1748859046611,-430.0,0.00017258,2]
[363745455,1748859046620,-380.0,0.00017258,2]
[363745456,1748859046630,-430.0,0.00017258,2]
[363745457,1748859046640,-1016.38,0.00017258,2]
[363745458,1748859046650,-866.87,0.00017258,2]
[363745459,1748859046659,-430.0,0.00017258,2]
[363745460,1748859046670,-430.0,0.00017258,2]
[363745461,1748859046685,-700.68,0.00017258,2]
[363745462,1748859046695,-1432.09,0.00017258,2]
[363745463,1748859046704,-96.53521784,0.00017258,2]
[363745464,1748859046981,-333.46478216,0.00017258,2]
[363745465,1748859046989,-796.28,0.00017258,2]
[363745466,1748859046998,-430.0,0.00017258,2]
[363745467,1748859047008,-262.90467388,0.00017258,2]
[363745468,1748859047017,-430.0,0.00017259,2]
[363745469,1748859047026,-430.0,0.00017259,2]
[363745470,1748859047035,-430.0,0.00017259,2]
[363745471,1748859047044,-430.0,0.00017259,2]
[363745472,1748859047053,-430.0,0.00017259,2]
[363745473,1748859047063,-430.0,0.00017259,2]
[363745474,1748859047072,-464.59,0.00017259,2]
[363745475,1748859047082,-430.0,0.00017532,2]
[363745476,1748859047092,-430.0,0.00017532,2]
[363745477,1748859047102,-430.0,0.00017532,2]
[363745478,1748859047111,-430.0,0.00017532,2]
[363745479,1748859047120,-430.0,0.00017532,2]
[363745480,1748859047131,-430.0,0.00017532,2]
[363745481,1748859047141,-430.0,0.00017532,2]
[363745482,1748859047151,-430.0,0.00017532,2]
[363745483,1748859047160,-2658.08637002,0.00017532,2]
[363745484,1748859047174,-821.82362998,0.00017532,2]
[363745485,1748859047184,-1385.85,0.00017532,2]
[363745486,1748859047193,-430.0,0.00017532,2]
[363745487,1748859047202,-430.0,0.00017532,2]
[363745488,1748859047212,-468.01,0.00017532,2]
[363745489,1748859047221,-430.0,0.00017532,2]
[363745490,1748859047230,-430.0,0.00017532,2]
[363745491,1748859047240,-430.0,0.00017532,2]
[363745492,1748859047249,-430.0,0.00017532,2]
[363745493,1748859047259,-1016.38,0.00017532,2]
[363745494,1748859047268,-866.87,0.00017532,2]
[363745495,1748859047277,-430.0,0.00017532,2]
[363745496,1748859047288,-430.0,0.00017532,2]
[363745497,1748859047298,-700.68,0.00017532,2]
[363745498,1748859047308,-1432.09,0.00017532,2]
[363745499,1748859047318,-430.0,0.00017532,2]
[363745500,1748859047328,-796.28,0.00017532,2]
[363745501,1748859047338,-430.0,0.00017532,2]
[363745502,1748859047349,-208.875598,0.00017533,2]
[363745503,1748859047362,-221.124402,0.00017533,2]
[363745504,1748859047371,-276.645598,0.00017533,2]
[363745505,1748859050414,158.704216,0.00013699,2]
[363747128,1748859367743,162.774,0.00024658,120]
[363747133,1748859525742,-161.37303089,0.0001661,2]
[363747134,1748859525766,-300.0,0.00016708,2]
[363747135,1748859525794,-547.0,0.00016708,2]
[363747136,1748859525819,-300.0,0.00016708,2]
[363747137,1748859525844,-370.0,0.00016708,2]
[363747138,1748859525874,-300.0,0.00016708,2]
[363747139,1748859525901,-430.0,0.00016709,2]
[363747140,1748859525928,-430.0,0.00016709,2]
[363747141,1748859525952,-430.0,0.00016709,2]
[363747142,1748859525981,-430.0,0.00016709,2]
[363747143,1748859526005,-430.0,0.00016709,2]
[363747144,1748859526031,-430.0,0.00016709,2]
[363747145,1748859526057,-170.39896911,0.00016709,2]
[363747146,1748859526089,-259.60103089,0.00016709,2]
[363747147,1748859526117,-430.0,0.00016709,2]
[363747148,1748859526141,-430.0,0.00016709,2]
[363747149,1748859526166,-430.0,0.00016709,2]
[363747150,1748859526191,-430.0,0.00016709,2]
[363747151,1748859526215,-430.0,0.00016709,2]
[363747152,1748859526239,-430.0,0.00016709,2]
[363747153,1748859526265,-430.0,0.00016709,2]
[363747154,1748859526291,-430.0,0.00016709,2]
[363747155,1748859526317,-430.0,0.00016709,2]
[363747156,1748859526341,-248.25270966,0.00016709,2]
[363747158,1748859526369,-350.91825945,0.00016709,2]
[363747159,1748859526400,-79.08174055,0.00016709,2]
[363747160,1748859526426,-430.0,0.00016709,2]
[363747161,1748859526450,-430.0,0.00016709,2]
[363747162,1748859526478,-430.0,0.00016709,2]
[363747163,1748859526503,-430.0,0.00016709,2]
[363747164,1748859526530,-430.0,0.00016709,2]
[363747165,1748859526555,-430.0,0.00016709,2]
[363747166,1748859526582,-430.0,0.00016709,2]
[363747167,1748859526606,-430.0,0.00016709,2]
[363747168,1748859526631,-217.37314598,0.00016709,2]
[363747169,1748859526655,-430.0,0.00016709,2]
[363747170,1748859526680,-430.0,0.00016709,2]
[363747171,1748859526705,-132.31711347,0.00016709,2]
[363747172,1748859526735,-297.68288653,0.00016709,2]
[363747173,1748859526759,-430.0,0.00016709,2]
[363747174,1748859526786,-430.0,0.00016709,2]
[363747175,1748859526812,-430.0,0.00016709,2]
[363747176,1748859526837,-430.0,0.00016709,2]
[363747177,1748859526860,-430.0,0.00016709,2]
[363747178,1748859526886,-430.0,0.00016709,2]
[363747179,1748859526911,-1851.08911347,0.00016709,2]
[363747180,1748859526938,-257.52088653,0.00016709,2]
[363747181,1748859526963,-430.0,0.00016709,2]
[363747182,1748859526988,-430.0,0.00016709,2]
[363747183,1748859527013,-430.0,0.00016709,2]
[363747184,1748859527042,-1191.73,0.00016709,2]
[363747185,1748859527067,-436.72618893,0.00016709,2]
[363747186,1748859527095,-430.0,0.00016709,2]
[363747187,1748859527127,-430.0,0.00016709,2]
[363747188,1748859527158,-692.79492454,0.00016709,2]
[363747189,1748859527227,-691.72507546,0.00016709,2]
[363747190,1748859527251,-430.0,0.00016709,2]
[363747191,1748859527278,-975.55,0.00016709,2]
[363747192,1748859527303,-430.0,0.00016709,2]
[363747193,1748859527327,-411.37198917,0.00016709,2]
[363747194,1748859527350,-430.0,0.00016709,2]
[363747195,1748859527379,-430.0,0.00016709,2]